[Event "Live Chess"]
[Site "Chess.com"]
[Date "2024.06.02"]
[Round "-"]
[White "AndrewBak1"]
[Black "Dhaydon19"]
[Result "0-1"]
[WhiteElo "1874"]
[BlackElo "2678"]
[TimeControl "300"]
[EndTime "16:24:31 PDT"]
[Termination "Dhaydon19 won by resignation"]

1. e4 {[%clk 0:04:56.3]} 1... c6 {[%clk 0:04:46.9]} 2. d4 {[%clk 0:04:54.5]}
2... d5 {[%clk 0:04:46.5]} 3. e5 {[%clk 0:04:52.3]} 3... c5 {[%clk 0:04:45.7]}
4. dxc5 {[%clk 0:04:49.5]} 4... Nc6 {[%clk 0:04:44.6]} 5. a3 {[%clk 0:04:47.1]}
5... Nxe5 {[%clk 0:04:43.2]} 6. b4 {[%clk 0:04:45.8]} 6... Nf6 {[%clk
0:04:42.3]} 7. Bb2 {[%clk 0:04:43.9]} 7... Nc6 {[%clk 0:04:41.9]} 8. Nf3 {[%clk
0:04:37.9]} 8... e6 {[%clk 0:04:41.1]} 9. Bd3 {[%clk 0:04:30.7]} 9... g6 {[%clk
0:04:38.3]} 10. O-O {[%clk 0:03:59.4]} 10... Bg7 {[%clk 0:04:21.7]} 11. Nc3
{[%clk 0:03:50.9]} 11... O-O {[%clk 0:04:18.2]} 12. Nb5 {[%clk 0:03:42.7]} 12...
a6 {[%clk 0:03:31]} 13. Nd6 {[%clk 0:03:37.4]} 13... Qc7 {[%clk 0:03:30.1]} 14.
Re1 {[%clk 0:03:22.5]} 14... Bd7 {[%clk 0:03:25]} 15. Ne5 {[%clk 0:03:11.2]}
15... b6 {[%clk 0:03:22.6]} 16. Nxc6 {[%clk 0:02:55.3]} 16... Bxc6 {[%clk
0:03:19.6]} 17. Bd4 {[%clk 0:02:43.3]} 17... bxc5 {[%clk 0:03:15.5]} 18. Bxc5
{[%clk 0:02:39.1]} 18... Nd7 {[%clk 0:03:14.3]} 19. Rb1 {[%clk 0:02:33.4]} 19...
Nxc5 {[%clk 0:03:11.7]} 20. bxc5 {[%clk 0:02:33.3]} 20... Qa5 {[%clk 0:03:10]}
21. Nb7 {[%clk 0:02:12.9]} 21... Bxb7 {[%clk 0:03:07.6]} 22. Rxb7 {[%clk
0:02:10.6]} 22... Qxc5 {[%clk 0:03:07.3]} 23. Qe2 {[%clk 0:01:25.4]} 23... Qxa3
{[%clk 0:03:03.1]} 24. Reb1 {[%clk 0:01:19.7]} 24... Qc5 {[%clk 0:02:59]} 25.
Bxa6 {[%clk 0:01:16.7]} 25... Ra7 {[%clk 0:02:53.6]} 26. Rxa7 {[%clk 0:01:12.6]}
26... Qxa7 {[%clk 0:02:52.6]} 27. Rb7 {[%clk 0:01:11.9]} 27... Qd4 {[%clk
0:02:51]} 28. g3 {[%clk 0:01:06.4]} 28... Qc5 {[%clk 0:02:47.4]} 29. c4 {[%clk
0:01:01.2]} 29... d4 {[%clk 0:02:43]} 30. Rb5 {[%clk 0:00:56.2]} 30... Qa3
{[%clk 0:02:41.7]} 31. Bb7 {[%clk 0:00:53.5]} 31... d3 {[%clk 0:02:37.8]} 32.
Qf3 {[%clk 0:00:45.3]} 32... Qc1+ {[%clk 0:02:35.3]} 33. Kg2 {[%clk 0:00:43.8]}
33... d2 {[%clk 0:02:35]} 0-1

[Event "Live Chess"]
[Site "Chess.com"]
[Date "2024.06.02"]
[Round "-"]
[White "grillage"]
[Black "vincents82"]
[Result "0-1"]
[WhiteElo "1849"]
[BlackElo "2033"]
[TimeControl "300"]
[EndTime "16:24:35 PDT"]
[Termination "vincents82 won by resignation"]

1. d4 {[%clk 0:04:58]} 1... d5 {[%clk 0:04:58.7]} 2. Nf3 {[%clk 0:04:57.3]} 2...
Nf6 {[%clk 0:04:57.9]} 3. c4 {[%clk 0:04:56.5]} 3... c6 {[%clk 0:04:57.1]} 4.
Qc2 {[%clk 0:04:55.1]} 4... g6 {[%clk 0:04:51.4]} 5. Bg5 {[%clk 0:04:50.6]} 5...
Bf5 {[%clk 0:04:50]} 6. Qb3 {[%clk 0:04:49]} 6... dxc4 {[%clk 0:04:49.3]} 7.
Qxb7 {[%clk 0:04:47]} 7... Nbd7 {[%clk 0:04:47.7]} 8. Qxc6 {[%clk 0:04:43.2]}
8... Rc8 {[%clk 0:04:44.9]} 9. Qa4 {[%clk 0:04:40.4]} 9... Bg7 {[%clk
0:04:43.5]} 10. Nc3 {[%clk 0:04:37.7]} 10... O-O {[%clk 0:04:41.9]} 11. e3
{[%clk 0:04:36.4]} 11... Nb6 {[%clk 0:04:40.2]} 12. Qd1 {[%clk 0:04:25.8]} 12...
Ne4 {[%clk 0:04:34.1]} 13. Rc1 {[%clk 0:04:17.6]} 13... Nd5 {[%clk 0:04:27.5]}
14. Nxd5 {[%clk 0:04:05.5]} 14... Qxd5 {[%clk 0:04:26.3]} 15. Bxe7 {[%clk
0:04:03.7]} 15... Rfe8 {[%clk 0:04:25.4]} 16. Bb4 {[%clk 0:03:45.6]} 16... a5
{[%clk 0:04:20.9]} 17. Bc3 {[%clk 0:03:41.1]} 17... Nxc3 {[%clk 0:04:11.8]} 18.
Rxc3 {[%clk 0:03:35.4]} 18... Bg4 {[%clk 0:04:06.7]} 19. Be2 {[%clk 0:03:33.9]}
19... Bxf3 {[%clk 0:04:05.6]} 20. Bxf3 {[%clk 0:03:29]} 20... Qxd4 {[%clk
0:04:04.4]} 21. Qxd4 {[%clk 0:03:26]} 21... Bxd4 {[%clk 0:04:03.3]} 22. Ra3
{[%clk 0:03:20.2]} 22... Bxb2 {[%clk 0:04:00.8]} 23. Rxa5 {[%clk 0:03:16.3]}
23... Bc3+ {[%clk 0:03:59.8]} 0-1

[Event "Live Chess"]
[Site "Chess.com"]
[Date "2024.06.02"]
[Round "-"]
[White "JanMur7"]
[Black "Queensandpawns"]
[Result "0-1"]
[WhiteElo "2294"]
[BlackElo "2318"]
[TimeControl "300"]
[EndTime "16:24:39 PDT"]
[Termination "Queensandpawns won by resignation"]

1. c4 {[%clk 0:04:57.4]} 1... d5 {[%clk 0:04:56.7]} 2. cxd5 {[%clk 0:04:55.8]}
2... c6 {[%clk 0:04:56.6]} 3. Nc3 {[%clk 0:04:52.8]} 3... cxd5 {[%clk 0:04:55]}
4. d4 {[%clk 0:04:52.2]} 4... Nc6 {[%clk 0:04:54.1]} 5. Nf3 {[%clk 0:04:49.2]}
5... Bf5 {[%clk 0:04:53.4]} 6. Bd2 {[%clk 0:04:48.1]} 6... e6 {[%clk 0:04:52.9]}
7. Qb3 {[%clk 0:04:46.1]} 7... Nb4 {[%clk 0:04:51]} 8. Qa4+ {[%clk 0:04:43.8]}
8... Qd7 {[%clk 0:04:48.3]} 9. Qxd7+ {[%clk 0:04:42.6]} 9... Kxd7 {[%clk
0:04:48.2]} 10. Ne5+ {[%clk 0:04:42.1]} 10... Ke8 {[%clk 0:04:47.7]} 11. e4
{[%clk 0:04:13.8]} 11... Nc2+ {[%clk 0:04:25.6]} 12. Kd1 {[%clk 0:04:08.1]}
12... Bxe4 {[%clk 0:04:21.6]} 13. Nxe4 {[%clk 0:04:00.7]} 13... Nxa1 {[%clk
0:04:21.1]} 14. Bb5+ {[%clk 0:03:59.1]} 14... Ke7 {[%clk 0:04:20.1]} 15. Bb4+
{[%clk 0:03:57.8]} 15... Kd8 {[%clk 0:04:12.7]} 16. Bxf8 {[%clk 0:03:16.6]}
16... dxe4 {[%clk 0:03:59.4]} 17. Bxg7 {[%clk 0:03:15.6]} 17... Ke7 {[%clk
0:03:55.8]} 18. Bxh8 {[%clk 0:02:59.5]} 18... f6 {[%clk 0:03:54.5]} 19. Nd7
{[%clk 0:02:43.2]} 19... a6 {[%clk 0:03:46.7]} 20. Nb6 {[%clk 0:02:34.9]} 20...
Rd8 {[%clk 0:03:45.2]} 21. Ba4 {[%clk 0:02:23.5]} 21... Rxd4+ {[%clk 0:03:27.3]}
22. Ke2 {[%clk 0:02:21.7]} 22... Rb4 {[%clk 0:03:22.1]} 23. Nc8+ {[%clk
0:01:21.7]} 23... Kd8 {[%clk 0:02:58.2]} 24. Nd6 {[%clk 0:01:04.4]} 24... Rxa4
{[%clk 0:02:39.3]} 25. Rxa1 {[%clk 0:00:59.9]} 25... Ke7 {[%clk 0:02:36.4]} 26.
Nxb7 {[%clk 0:00:51.8]} 26... Nh6 {[%clk 0:02:29.4]} 27. Nc5 {[%clk 0:00:45.3]}
27... Rc4 {[%clk 0:02:25.4]} 28. Nxa6 {[%clk 0:00:36.3]} 28... Rc8 {[%clk
0:02:25.3]} 29. Bxf6+ {[%clk 0:00:34.5]} 29... Kxf6 {[%clk 0:02:23.9]} 30. b4
{[%clk 0:00:34.1]} 30... Nf5 {[%clk 0:02:21]} 31. Rd1 {[%clk 0:00:31.4]} 31...
Rc2+ {[%clk 0:02:18.8]} 32. Kf1 {[%clk 0:00:29]} 32... Rxa2 {[%clk 0:02:17]} 33.
Nc5 {[%clk 0:00:24]} 33... e3 {[%clk 0:02:16.1]} 34. Re1 {[%clk 0:00:16.8]}
34... Rxf2+ {[%clk 0:02:10.1]} 35. Kg1 {[%clk 0:00:15.8]} 35... Rb2 {[%clk
0:02:10]} 36. g4 {[%clk 0:00:12.3]} 36... Nh4 {[%clk 0:02:07.9]} 37. Rxe3 {[%clk
0:00:11.6]} 37... Rb1+ {[%clk 0:02:04.3]} 38. Kf2 {[%clk 0:00:10.4]} 38... Rxb4
{[%clk 0:02:04.1]} 39. Nxe6 {[%clk 0:00:08.6]} 39... Ng6 {[%clk 0:02:00]} 40.
Nc5 {[%clk 0:00:08.5]} 40... Rb2+ {[%clk 0:01:58.7]} 41. Kg3 {[%clk 0:00:07.3]}
41... Rc2 {[%clk 0:01:57.9]} 42. Rf3+ {[%clk 0:00:07.2]} 42... Ke5 {[%clk
0:01:55.6]} 43. Ne4 {[%clk 0:00:07.1]} 43... Kxe4 {[%clk 0:01:54.7]} 44. h4
{[%clk 0:00:06.5]} 44... Ne5 {[%clk 0:01:52.8]} 45. h5 {[%clk 0:00:06.4]} 45...
Nxf3 {[%clk 0:01:52]} 46. g5 {[%clk 0:00:05.9]} 46... Nxg5 {[%clk 0:01:50.7]}
0-1

[Event "Live Chess"]
[Site "Chess.com"]
[Date "2024.06.02"]
[Round "-"]
[White "jimwad"]
[Black "AlexanderMatlak"]
[Result "0-1"]
[WhiteElo "1333"]
[BlackElo "2393"]
[TimeControl "300"]
[EndTime "16:24:45 PDT"]
[Termination "AlexanderMatlak won by resignation"]

1. d4 {[%clk 0:04:57.5]} 1... Nf6 {[%clk 0:04:58.8]} 2. Nc3 {[%clk 0:04:54.4]}
2... d5 {[%clk 0:04:57.8]} 3. Bg5 {[%clk 0:04:52.3]} 3... Ne4 {[%clk 0:04:56.6]}
4. Nxe4 {[%clk 0:04:50.7]} 4... dxe4 {[%clk 0:04:56.5]} 5. e3 {[%clk 0:04:49.3]}
5... c6 {[%clk 0:04:50.1]} 6. Bc4 {[%clk 0:04:45.7]} 6... Qa5+ {[%clk
0:04:48.9]} 7. c3 {[%clk 0:04:42.6]} 7... Qxg5 {[%clk 0:04:47.7]} 8. Qb3 {[%clk
0:04:30.5]} 8... e6 {[%clk 0:04:44.4]} 9. Kf1 {[%clk 0:04:24.4]} 9... Bd6 {[%clk
0:04:41]} 10. Nh3 {[%clk 0:04:22.6]} 10... Qh4 {[%clk 0:04:36.7]} 11. Ke2 {[%clk
0:04:12.3]} 11... O-O {[%clk 0:04:35.3]} 12. Rag1 {[%clk 0:04:08.9]} 12... Nd7
{[%clk 0:04:32.6]} 13. Qd1 {[%clk 0:04:06]} 13... Nb6 {[%clk 0:04:27.6]} 14. Bb3
{[%clk 0:04:03.6]} 14... e5 {[%clk 0:04:26.7]} 15. dxe5 {[%clk 0:04:01.8]} 15...
Bxe5 {[%clk 0:04:22.1]} 16. Kd2 {[%clk 0:03:42]} 16... Bxh3 {[%clk 0:04:18.7]}
17. gxh3 {[%clk 0:03:39.5]} 17... Rad8+ {[%clk 0:04:17.8]} 0-1

[Event "Live Chess"]
[Site "Chess.com"]
[Date "2024.06.02"]
[Round "-"]
[White "raclement"]
[Black "MagnersCarlsberg2870"]
[Result "0-1"]
[WhiteElo "1717"]
[BlackElo "1788"]
[TimeControl "300"]
[EndTime "16:25:05 PDT"]
[Termination "MagnersCarlsberg2870 won by resignation"]

1. Nf3 {[%clk 0:04:53.8]} 1... Nc6 {[%clk 0:04:57.9]} 2. d4 {[%clk 0:04:48.4]}
2... d5 {[%clk 0:04:48.5]} 3. g3 {[%clk 0:04:46.2]} 3... Bg4 {[%clk 0:04:45.2]}
4. Bg2 {[%clk 0:04:44.7]} 4... Nf6 {[%clk 0:04:42.3]} 5. O-O {[%clk 0:04:42.8]}
5... h5 {[%clk 0:04:40.6]} 6. h3 {[%clk 0:04:39.9]} 6... Bf5 {[%clk 0:04:37.1]}
7. c3 {[%clk 0:04:33.3]} 7... Qd7 {[%clk 0:04:35.3]} 8. Kh2 {[%clk 0:04:28.3]}
8... h4 {[%clk 0:04:32.4]} 9. g4 {[%clk 0:04:24.9]} 9... Bxg4 {[%clk 0:04:28.4]}
10. hxg4 {[%clk 0:04:23.4]} 10... Nxg4+ {[%clk 0:04:27.4]} 11. Kg1 {[%clk
0:04:19.1]} 11... h3 {[%clk 0:04:26.3]} 12. Bh1 {[%clk 0:04:14.4]} 12... h2+
{[%clk 0:04:23.3]} 13. Kg2 {[%clk 0:04:10.4]} 13... Nf6 {[%clk 0:03:58.3]} 14.
Re1 {[%clk 0:04:03.1]} 14... Qg4+ {[%clk 0:03:56.6]} 15. Kf1 {[%clk 0:04:01.7]}
15... Qh3+ {[%clk 0:03:53.1]} 16. Bg2 {[%clk 0:03:57]} 16... h1=Q+ {[%clk
0:03:51.7]} 0-1

[Event "Live Chess"]
[Site "Chess.com"]
[Date "2024.06.02"]
[Round "-"]
[White "Frankie_Badacsonyi"]
[Black "hapehansen"]
[Result "1/2-1/2"]
[WhiteElo "2444"]
[BlackElo "2256"]
[TimeControl "300"]
[EndTime "16:25:06 PDT"]
[Termination "Game drawn by agreement"]

1. Nf3 {[%clk 0:04:58.1]} 1... Nf6 {[%clk 0:04:56]} 2. d4 {[%clk 0:04:57.1]}
2... e6 {[%clk 0:04:52.9]} 3. c4 {[%clk 0:04:56.2]} 3... d5 {[%clk 0:04:50.2]}
4. g3 {[%clk 0:04:55.1]} 4... Be7 {[%clk 0:04:46.4]} 5. Bg2 {[%clk 0:04:53.9]}
5... O-O {[%clk 0:04:45.9]} 6. O-O {[%clk 0:04:52.8]} 6... c6 {[%clk 0:04:43.7]}
7. Nc3 {[%clk 0:04:50.3]} 7... b6 {[%clk 0:04:27.8]} 8. b3 {[%clk 0:04:48.4]}
8... Ba6 {[%clk 0:04:21.7]} 9. Ne5 {[%clk 0:04:41.7]} 9... Nfd7 {[%clk
0:04:19.8]} 10. Nxd7 {[%clk 0:04:37.6]} 10... Nxd7 {[%clk 0:04:16.5]} 11. cxd5
{[%clk 0:04:36.5]} 11... cxd5 {[%clk 0:04:13.6]} 12. Bb2 {[%clk 0:04:34.2]}
12... Rc8 {[%clk 0:04:07.6]} 13. Rc1 {[%clk 0:04:33.3]} 13... Nf6 {[%clk
0:04:00.1]} 14. Qd2 {[%clk 0:04:31.6]} 14... Qd7 {[%clk 0:03:55.4]} 15. Rfe1
{[%clk 0:04:29]} 15... Rc7 {[%clk 0:03:48.9]} 16. e3 {[%clk 0:04:26.9]} 16...
Rfc8 {[%clk 0:03:46.3]} 17. Ne2 {[%clk 0:04:24.8]} 17... Ne4 {[%clk 0:03:38.2]}
18. Bxe4 {[%clk 0:04:22.7]} 18... dxe4 {[%clk 0:03:36.8]} 19. Rxc7 {[%clk
0:04:16.4]} 19... Rxc7 {[%clk 0:03:34.7]} 20. Rc1 {[%clk 0:04:14.7]} 20... Bxe2
{[%clk 0:03:24.9]} 21. Qxe2 {[%clk 0:04:14.6]} 21... Rxc1+ {[%clk 0:03:22.5]}
22. Bxc1 {[%clk 0:04:14.5]} 22... Qc8 {[%clk 0:03:17.2]} 23. Bb2 {[%clk
0:04:10.5]} 23... f5 {[%clk 0:03:12.2]} 24. Qd2 {[%clk 0:03:57.4]} 1/2-1/2

[Event "Live Chess"]
[Site "Chess.com"]
[Date "2024.06.02"]
[Round "-"]
[White "ShanthamGrarks"]
[Black "jk0110"]
[Result "1-0"]
[WhiteElo "1831"]
[BlackElo "1223"]
[TimeControl "300"]
[EndTime "16:25:07 PDT"]
[Termination "ShanthamGrarks won by checkmate"]

1. d4 {[%clk 0:04:56.7]} 1... Nf6 {[%clk 0:04:58.1]} 2. Nc3 {[%clk 0:04:56.2]}
2... d5 {[%clk 0:04:56]} 3. Bf4 {[%clk 0:04:55.8]} 3... c5 {[%clk 0:04:50.6]} 4.
e3 {[%clk 0:04:52.1]} 4... a6 {[%clk 0:04:34.9]} 5. dxc5 {[%clk 0:04:50.7]} 5...
Bf5 {[%clk 0:04:30.4]} 6. Bd3 {[%clk 0:04:44.8]} 6... Bg6 {[%clk 0:04:26.3]} 7.
b4 {[%clk 0:04:42.4]} 7... e6 {[%clk 0:04:19.8]} 8. Nf3 {[%clk 0:04:39.6]} 8...
Nc6 {[%clk 0:04:17.1]} 9. Ne5 {[%clk 0:04:37.5]} 9... Nxb4 {[%clk 0:04:08.9]}
10. Nxg6 {[%clk 0:04:35.7]} 10... hxg6 {[%clk 0:04:05.3]} 11. Rb1 {[%clk
0:04:24.6]} 11... Nxd3+ {[%clk 0:03:58]} 12. Qxd3 {[%clk 0:04:18.7]} 12... Bxc5
{[%clk 0:03:48.6]} 13. Rxb7 {[%clk 0:04:15.2]} 13... Qa5 {[%clk 0:03:39.8]} 14.
O-O {[%clk 0:04:09]} 14... Qd8 {[%clk 0:03:05.7]} 15. Rfb1 {[%clk 0:03:49.6]}
15... Bd6 {[%clk 0:02:58.3]} 16. Ne2 {[%clk 0:03:37.9]} 16... Bxf4 {[%clk
0:02:51.3]} 17. Nxf4 {[%clk 0:03:35.6]} 17... Nd7 {[%clk 0:02:30.7]} 18. Nxe6
{[%clk 0:03:27]} 18... fxe6 {[%clk 0:02:21]} 19. Qxg6+ {[%clk 0:03:24.6]} 19...
Kf8 {[%clk 0:02:13.6]} 20. Qxe6 {[%clk 0:03:22.1]} 20... Nc5 {[%clk 0:02:09.7]}
21. Qf7# {[%clk 0:03:19.4]} 1-0

[Event "Live Chess"]
[Site "Chess.com"]
[Date "2024.06.02"]
[Round "-"]
[White "viktor_forever1994"]
[Black "nigelst"]
[Result "0-1"]
[WhiteElo "1372"]
[BlackElo "1718"]
[TimeControl "300"]
[EndTime "16:25:17 PDT"]
[Termination "nigelst won by checkmate"]

1. e4 {[%clk 0:04:58.4]} 1... c6 {[%clk 0:04:59.1]} 2. d4 {[%clk 0:04:57.2]}
2... d5 {[%clk 0:04:58.4]} 3. exd5 {[%clk 0:04:57.1]} 3... cxd5 {[%clk
0:04:57.2]} 4. Nc3 {[%clk 0:04:57]} 4... Nf6 {[%clk 0:04:56.2]} 5. h3 {[%clk
0:04:56.2]} 5... Nc6 {[%clk 0:04:55.2]} 6. Nf3 {[%clk 0:04:55.6]} 6... Bf5
{[%clk 0:04:53]} 7. Bf4 {[%clk 0:04:54.6]} 7... e6 {[%clk 0:04:51.8]} 8. a3
{[%clk 0:04:53.1]} 8... Qb6 {[%clk 0:04:46.2]} 9. Rb1 {[%clk 0:04:48]} 9... Ne4
{[%clk 0:04:43.1]} 10. Nxe4 {[%clk 0:04:33.2]} 10... dxe4 {[%clk 0:04:16.1]} 11.
Ne5 {[%clk 0:04:27.3]} 11... Qxd4 {[%clk 0:04:07.7]} 12. Qxd4 {[%clk 0:04:12.9]}
12... Nxd4 {[%clk 0:04:02.3]} 13. c3 {[%clk 0:04:00.2]} 13... Nb3 {[%clk
0:03:45.9]} 14. Bb5+ {[%clk 0:03:49.8]} 14... Ke7 {[%clk 0:03:40.8]} 15. O-O
{[%clk 0:03:42.5]} 15... f6 {[%clk 0:03:37.7]} 16. Ng4 {[%clk 0:03:33.7]} 16...
e3 {[%clk 0:03:29.1]} 17. Bxe3 {[%clk 0:03:24.7]} 17... Bxb1 {[%clk 0:03:26.1]}
18. Rxb1 {[%clk 0:03:22.4]} 18... h5 {[%clk 0:03:19.8]} 19. Nh2 {[%clk
0:03:19.8]} 19... g6 {[%clk 0:03:18.7]} 20. Nf3 {[%clk 0:03:15.2]} 20... Bh6
{[%clk 0:02:54.1]} 21. Re1 {[%clk 0:03:02.4]} 21... Bxe3 {[%clk 0:02:50.4]} 22.
Rxe3 {[%clk 0:03:02.3]} 22... e5 {[%clk 0:02:38.4]} 23. Bc4 {[%clk 0:02:36.3]}
23... Na5 {[%clk 0:02:35.3]} 24. Bd5 {[%clk 0:02:34.7]} 24... Nc6 {[%clk
0:02:33.7]} 25. Nh4 {[%clk 0:02:23.5]} 25... Rh6 {[%clk 0:02:20.1]} 26. f4
{[%clk 0:02:10.9]} 26... Kf8 {[%clk 0:02:12]} 27. Bb3 {[%clk 0:01:33.9]} 27...
Rd8 {[%clk 0:01:59.4]} 28. Kh2 {[%clk 0:01:31.4]} 28... Rd2 {[%clk 0:01:56.8]}
29. fxe5 {[%clk 0:01:08.2]} 29... Nxe5 {[%clk 0:01:50.9]} 30. Rg3 {[%clk
0:01:05.3]} 30... Rxb2 {[%clk 0:01:41.5]} 31. Bd5 {[%clk 0:01:03.6]} 31... b6
{[%clk 0:01:34.6]} 32. c4 {[%clk 0:00:58.7]} 32... Rd2 {[%clk 0:01:30.9]} 33. a4
{[%clk 0:00:56.3]} 33... a5 {[%clk 0:01:28.6]} 34. Nf3 {[%clk 0:00:45.5]} 34...
Nxf3+ {[%clk 0:01:25.7]} 35. Rxf3 {[%clk 0:00:45.3]} 35... f5 {[%clk 0:01:19.4]}
36. Bc6 {[%clk 0:00:42.7]} 36... Rh7 {[%clk 0:01:12.4]} 37. Bb5 {[%clk
0:00:41.4]} 37... Re7 {[%clk 0:01:10.4]} 38. Rg3 {[%clk 0:00:40.3]} 38... Kg7
{[%clk 0:01:07.6]} 39. Rb3 {[%clk 0:00:31.7]} 39... Ree2 {[%clk 0:01:03.5]} 40.
Rg3 {[%clk 0:00:28.7]} 40... f4 {[%clk 0:00:58.2]} 41. Rg5 {[%clk 0:00:17.4]}
41... Kf6 {[%clk 0:00:56.8]} 42. Rd5 {[%clk 0:00:10]} 42... Rxg2+ {[%clk
0:00:53.2]} 43. Kh1 {[%clk 0:00:08.4]} 43... Rge2 {[%clk 0:00:49.6]} 44. c5
{[%clk 0:00:04.9]} 44... Re1+ {[%clk 0:00:45.3]} 45. Bf1 {[%clk 0:00:01.1]}
45... Rxf1# {[%clk 0:00:43.2]} 0-1

[Event "Live Chess"]
[Site "Chess.com"]
[Date "2024.06.02"]
[Round "-"]
[White "Sir_Sigmund"]
[Black "oscalik"]
[Result "0-1"]
[WhiteElo "1849"]
[BlackElo "2271"]
[TimeControl "300"]
[EndTime "16:25:37 PDT"]
[Termination "oscalik won by checkmate"]

1. e4 {[%clk 0:04:58.4]} 1... c5 {[%clk 0:04:57]} 2. Be2 {[%clk 0:04:56.2]} 2...
g6 {[%clk 0:04:51.8]} 3. d3 {[%clk 0:04:55.5]} 3... Bg7 {[%clk 0:04:51]} 4. c3
{[%clk 0:04:55.1]} 4... d6 {[%clk 0:04:50.1]} 5. f4 {[%clk 0:04:54.1]} 5... e6
{[%clk 0:04:49.2]} 6. Na3 {[%clk 0:04:52.2]} 6... Ne7 {[%clk 0:04:48.5]} 7. Nf3
{[%clk 0:04:46.8]} 7... O-O {[%clk 0:04:47.3]} 8. O-O {[%clk 0:04:44.7]} 8...
Nbc6 {[%clk 0:04:46.5]} 9. Qe1 {[%clk 0:04:42.5]} 9... Rb8 {[%clk 0:04:43.5]}
10. Nc2 {[%clk 0:04:39.4]} 10... b5 {[%clk 0:04:38.8]} 11. a3 {[%clk 0:04:38.8]}
11... a5 {[%clk 0:04:37.3]} 12. Bd2 {[%clk 0:04:33.8]} 12... b4 {[%clk
0:04:35.3]} 13. axb4 {[%clk 0:04:30.8]} 13... axb4 {[%clk 0:04:34.6]} 14. Qh4
{[%clk 0:04:20.1]} 14... bxc3 {[%clk 0:04:29.6]} 15. Bxc3 {[%clk 0:04:17.4]}
15... f6 {[%clk 0:04:19]} 16. Ne3 {[%clk 0:03:56.8]} 16... d5 {[%clk 0:04:01.4]}
17. Ng4 {[%clk 0:03:51.2]} 17... d4 {[%clk 0:03:55.2]} 18. Be1 {[%clk
0:03:33.5]} 18... Rxb2 {[%clk 0:03:48.3]} 19. Rf2 {[%clk 0:03:30.8]} 19... e5
{[%clk 0:03:40.2]} 20. fxe5 {[%clk 0:03:22.9]} 20... Bxg4 {[%clk 0:03:37.8]} 21.
Qxg4 {[%clk 0:03:16.1]} 21... Nxe5 {[%clk 0:03:22.9]} 22. Qe6+ {[%clk
0:03:02.3]} 22... Kh8 {[%clk 0:03:20.7]} 23. Ra7 {[%clk 0:02:24.5]} 23... Nxf3+
{[%clk 0:03:09.3]} 24. gxf3 {[%clk 0:02:16.2]} 24... Re8 {[%clk 0:02:55.5]} 25.
Ba5 {[%clk 0:02:00.4]} 25... Qc8 {[%clk 0:02:34.8]} 26. Qf7 {[%clk 0:01:38.5]}
26... Bh6 {[%clk 0:01:23.9]} 27. Qxf6+ {[%clk 0:01:16.5]} 27... Kg8 {[%clk
0:01:16.1]} 28. Rxe7 {[%clk 0:01:06.4]} 28... Rxe7 {[%clk 0:01:11.4]} 29. Qxe7
{[%clk 0:01:05.6]} 29... Be3 {[%clk 0:01:11]} 30. Kg2 {[%clk 0:01:00.3]} 30...
c4 {[%clk 0:00:59.1]} 31. Bd8 {[%clk 0:00:44.8]} 31... Qc6 {[%clk 0:00:32.5]}
32. dxc4 {[%clk 0:00:26.8]} 32... d3 {[%clk 0:00:31.2]} 33. Bc7 {[%clk
0:00:20.3]} 33... Rxe2 {[%clk 0:00:25.8]} 34. Qd8+ {[%clk 0:00:18.2]} 34... Kf7
{[%clk 0:00:21.1]} 35. Rxe2 {[%clk 0:00:14]} 35... dxe2 {[%clk 0:00:21]} 36. Be5
{[%clk 0:00:05.4]} 36... e1=Q {[%clk 0:00:14.1]} 37. Qd5+ {[%clk 0:00:04.4]}
37... Qxd5 {[%clk 0:00:13]} 38. cxd5 {[%clk 0:00:03.7]} 38... Qf2+ {[%clk
0:00:12.7]} 39. Kh3 {[%clk 0:00:02.7]} 39... Qxf3+ {[%clk 0:00:12]} 40. Kh4
{[%clk 0:00:00.1]} 40... g5# {[%clk 0:00:11.8]} 0-1